{"text_format":"3","workbook":"xlsx","n_sheets":1,"sheets":["Hoja1"],"not_rendered":{"images":1,"macros":1},"read":"whole","date_system":"1900"}

{"sheet":"Hoja1","index":0,"n_rows":24,"n_cols":13,"rows_kept":24,"merged":[[1,1,1,12],[2,1,2,12],[3,11,3,12],[6,13,16,13]]}
[]
[null,"Cuenta Pública 2020\nCuotas, Aportaciones y Retenciones al ISSEMyM"]
[null,"(Cifras en Pesos)"]
[null,"Entidad Municipal: _________________(1) ",{"$nulls":9}," Al  31 de Diciembre de 2020"]
[]
[null,"Mes ","Importe determinado (2)\nA","Actualizaciones (3)\nB","Recargos (4)\nC","Total a pagar (5)\nD= (A+B+C)\n","Pagos realizados (6)\nE","Importe de la disminución por la Secretaría de Finanzas según constancia de liquidación de participaciones (7) \nF","Diferencia\n (8)\nG=D-E","Forma de pago (9)\n","Fecha de pago (10) ","Pagos realizados por adeudos de ejercicios anteriores (11)\n","Observaciones (12)"]
[null,"Enero ",{"$nulls":3},{"$f":"+C7+D7+E7","v":{"v":0,"d":"0.0"}},null,null,{"$f":"+F7-G7","v":{"v":0,"d":"0.0"}}]
[null,"Febrero",{"$nulls":3},{"$f":"+C8+D8+E8","v":{"v":0,"d":"0.0"}},null,null,{"$f":"+F8-G8","v":{"v":0,"d":"0.0"}}]
[null,"Marzo",{"$nulls":3},{"$f":"+C9+D9+E9","v":{"v":0,"d":"0.0"}},null,null,{"v":0,"d":"0.0"}]
[null,"Abril",{"$nulls":3},{"v":0,"d":"0.0"},null,null,{"v":0,"d":"0.0"}]
[null,"Mayo",{"$nulls":3},{"v":0,"d":"0.0"},null,null,{"v":0,"d":"0.0"}]
[null,"Junio",{"$nulls":3},{"v":0,"d":"0.0"},null,null,{"v":0,"d":"0.0"}]
[null,"Julio",{"$nulls":3},{"v":0,"d":"0.0"},null,null,{"v":0,"d":"0.0"}]
[null,"Agosto",{"$nulls":3},{"v":0,"d":"0.0"},null,null,{"v":0,"d":"0.0"}]
[null,"Septiembre",{"$nulls":3},{"v":0,"d":"0.0"},null,null,{"v":0,"d":"0.0"}]
[null,"Octubre",{"$nulls":3},{"v":0,"d":"0.0"},null,null,{"v":0,"d":"0.0"}]
[null,"Noviembre",{"$nulls":3},{"v":0,"d":"0.0"},null,null,{"v":0,"d":"0.0"}]
[null,"Diciembre",{"$nulls":3},{"v":0,"d":"0.0"},null,null,{"v":0,"d":"0.0"}]
[null,"Total",{"$f":"SUM(C7:C18)","v":{"v":0,"d":"0.0"}},{"v":0,"d":"0.0"},{"v":0,"d":"0.0"},{"v":0,"d":"0.0"},{"v":0,"d":"0.0"},{"v":0,"d":"0.0"},{"v":0,"d":"0.0"},null,null,{"$f":"SUM(L7:L18)","v":{"v":0,"d":"0.0"}}]
[]
[null,"Nota 1: Agregar expediente digitalizado  de los pagos realizados en el banco y que incluya poliza de egresos con soporte documental del ejercicio completo sin omitir algún mes."]
[null,"Nota 2: Agregar en el apartado de observaciones aclaración e importe que se entera por parte del organismo descentralizado."]
[]
[null,null,"\"Bajo protesta de decir verdad declaramos que los formatos y sus notas, son razonablemente correctos y son responsabilidad del emisor\""]